fUSD/lending_fUSD_20250204
["ID","MTS","AMOUNT","RATE_DAILY","PERIOD"]
[351597243,1738651924474,-2639.94,9.897e-05,2]
[351597244,1738651924484,-665.18,9.897e-05,2]
[351597245,1738651924494,-1806.83,9.897e-05,2]
[351597246,1738651924504,-2956.17,9.897e-05,2]
[351597247,1738651924514,-634.35,9.897e-05,2]
[351597248,1738651924524,-1174.99,9.897e-05,2]
[351597249,1738651924534,-505.68,9.897e-05,2]
[351597250,1738651924544,-3489.81,9.897e-05,2]
[351597251,1738651924558,-2290.92,9.897e-05,2]
[351597252,1738651924568,-2152.55,9.897e-05,2]
[351597253,1738651924579,-1492.95,9.897e-05,2]
[351597254,1738651924589,-500.0,9.898e-05,2]
[351597255,1738651924599,-1386.25,9.898e-05,2]
[351597256,1738651924609,-573.38,9.898e-05,2]
[351597257,1738651924619,-1162.27,9.898e-05,2]
[351597258,1738651924629,-886.96,9.898e-05,2]
[351597259,1738651924640,-1960.06,9.898e-05,2]
[351597260,1738651924650,-500.0,9.898e-05,2]
[351597261,1738651924660,-1816.95,9.898e-05,2]
[351597262,1738651924671,-507.74,9.898e-05,2]
[351597263,1738651924680,-1692.58,9.898e-05,2]
[351597264,1738651924691,-500.0,9.898e-05,2]
[351597265,1738651924705,-1233.2,9.898e-05,2]
[351597266,1738651924726,-837.33,9.898e-05,2]
[351597267,1738651924744,-1065.99,9.898e-05,2]
[351597268,1738651924765,-1129.84,9.898e-05,2]
[351597269,1738651924781,-1504.93,9.898e-05,2]
[351597270,1738651924800,-1321.61,9.898e-05,2]
[351597271,1738651924821,-1364.66,9.898e-05,2]
[351597272,1738651924843,-745.69,9.898e-05,2]
[351597273,1738651924863,-1579.1,9.898e-05,2]
[351597274,1738651924882,-1941.246848,9.898e-05,2]
[351597275,1738651924899,-629.84,9.898e-05,2]
[351597276,1738651924916,-1596.8,9.898e-05,2]
[351597277,1738651924933,-517.05423049,9.898e-05,2]
[351597278,1738651924950,-986.75,9.898e-05,2]
[351597279,1738651924965,-500.0,9.898e-05,2]
[351597280,1738651924983,-879.57,9.898e-05,2]
[351597281,1738651925000,-628.73,9.898e-05,2]
[351597282,1738651925018,-500.0,9.898e-05,2]
[351597283,1738651925034,-1927.353361,9.898e-05,2]
[351597284,1738651925050,-500.0,9.898e-05,2]
[351597285,1738651925068,-628.63,9.898e-05,2]
[351597286,1738651925090,-1061.5,9.898e-05,2]
[351597287,1738651925107,-720.77,9.898e-05,2]
[351597288,1738651925126,-1583.49,9.898e-05,2]
[351597289,1738651925143,-1268.29,9.898e-05,2]
[351597290,1738651925159,-500.0,9.898e-05,2]
[351597291,1738651925176,-839.48,9.898e-05,2]
[351597292,1738651925195,-1688.73,9.898e-05,2]
[351597293,1738651925211,-1876.72,9.898e-05,2]
[351597294,1738651925227,-802.61,9.898e-05,2]
[351597295,1738651925244,-610.52,9.898e-05,2]
[351597296,1738651925259,-1840.23,9.898e-05,2]
[351597297,1738651925275,-622.05,9.898e-05,2]
[351597298,1738651925292,-1395.09,9.898e-05,2]
[351597299,1738651925312,-1984.41,9.898e-05,2]
[351597300,1738651925328,-500.0,9.898e-05,2]
[351597301,1738651925345,-573.41,9.898e-05,2]
[351597302,1738651925361,-500.0,9.898e-05,2]
[351597303,1738651925378,-702.06,9.898e-05,2]
[351597304,1738651925393,-1107.58,9.898e-05,2]
[351597305,1738651925408,-500.0,9.898e-05,2]
[351597306,1738651925423,-500.0,9.898e-05,2]
[351597307,1738651925439,-500.0,9.898e-05,2]
[351597308,1738651925455,-500.0,9.898e-05,2]
[351597309,1738651925470,-1023.87,9.898e-05,2]
[351597310,1738651925485,-2235.71,9.898e-05,2]
[351597311,1738651925500,-864.57,9.898e-05,2]
[351597312,1738651925514,-1442.14,9.898e-05,2]
[351597313,1738651925529,-152.907822,9.898e-05,2]
[351597314,1738651925545,-1526.09,9.898e-05,2]
[351597315,1738651925562,-749.13,9.898e-05,2]
[351597316,1738651925577,-871.17,9.898e-05,2]
[351597317,1738651925593,-1146.18,9.898e-05,2]
[351597318,1738651925609,-662.91,9.898e-05,2]
[351597319,1738651925624,-500.0,9.898e-05,2]
[351597320,1738651925639,-1009.64,9.898e-05,2]
[351597321,1738651925655,-2267.45,9.898e-05,2]
[351597322,1738651925671,-656.52,9.898e-05,2]
[351597323,1738651925685,-500.0,9.898e-05,2]
[351597324,1738651925700,-541.89,9.898e-05,2]
[351597325,1738651925716,-736.13,9.898e-05,2]
[351597326,1738651925730,-1760.16,9.898e-05,2]
[351597327,1738651925744,-2409.33,9.898e-05,2]
[351597328,1738651925760,-1852.54,9.898e-05,2]
[351597329,1738651925774,-2838.45,9.898e-05,2]
[351597330,1738651925792,-528.53,9.898e-05,2]
[351597331,1738651925806,-545.79,9.898e-05,2]
[351597332,1738651925823,-2890.01,9.898e-05,2]
[351597333,1738651925839,-500.0,9.898e-05,2]
[351597334,1738651925855,-2478.82,9.898e-05,2]
[351597335,1738651925871,-500.0,9.898e-05,2]
[351597336,1738651925886,-500.0,9.898e-05,2]
[351597337,1738651925902,-942.69,9.898e-05,2]
[351597338,1738651925918,-1246.43,9.898e-05,2]
[351597339,1738651925934,-500.0,9.898e-05,2]
[351597340,1738651925950,-2635.78,9.898e-05,2]
[351597341,1738651925966,-1761.95,9.898e-05,2]
[351597342,1738651925981,-793.19,9.898e-05,2]
[351597343,1738651925997,-2601.96,9.898e-05,2]
[351597344,1738651926013,-2705.26,9.898e-05,2]
[351597345,1738651926029,-1478.32,9.898e-05,2]
[351597346,1738651926045,-500.0,9.898e-05,2]
[351597347,1738651926061,-2173.93,9.898e-05,2]
[351597348,1738651926076,-2878.08,9.898e-05,2]
[351597349,1738651926092,-1170.31,9.898e-05,2]
[351597350,1738651926107,-500.0,9.898e-05,2]
[351597351,1738651926125,-2206.62,9.898e-05,2]
[351597352,1738651926140,-533.56,9.898e-05,2]
[351597353,1738651926156,-1881.39,9.898e-05,2]
[351597354,1738651926171,-2920.46,9.898e-05,2]
[351597355,1738651926186,-699.93,9.898e-05,2]
[351597356,1738651926202,-2040.45,9.898e-05,2]
[351597357,1738651926223,-500.0,9.898e-05,2]
[351597358,1738651926239,-2227.02,9.898e-05,2]
[351597359,1738651926254,-614.25,9.898e-05,2]
[351597360,1738651926269,-779.73,9.898e-05,2]
[351597361,1738651926284,-2094.99,9.898e-05,2]
[351597362,1738651926300,-1294.54,9.898e-05,2]
[351597363,1738651926318,-3429.21,9.898e-05,2]
[351597364,1738651926334,-500.0,9.898e-05,2]
[351597365,1738651926349,-2303.31,9.898e-05,2]
[351597366,1738651926364,-500.0,9.898e-05,2]
[351597367,1738651926379,-2519.6,9.898e-05,2]
[351597368,1738651926394,-500.0,9.898e-05,2]
[351597369,1738651926409,-596.06,9.898e-05,2]
[351597370,1738651926423,-540.23,9.898e-05,2]
[351597371,1738651926439,-3292.26,9.898e-05,2]
[351597372,1738651926454,-2116.61,9.898e-05,2]
[351597373,1738651926469,-4613.87,9.898e-05,2]
[351597374,1738651926484,-3463.94,9.898e-05,2]
[351597375,1738651926499,-1583.36,9.898e-05,2]
[351597376,1738651926514,-723.79,9.898e-05,2]
[351597377,1738651926528,-1828.01,9.898e-05,2]
[351597378,1738651926542,-2319.2,9.898e-05,2]
[351597379,1738651926559,-3655.1,9.898e-05,2]
[351597380,1738651926573,-500.0,9.898e-05,2]
[351597381,1738651926590,-2342.96,9.898e-05,2]
[351597382,1738651926604,-3953.69,9.898e-05,2]
[351597383,1738651926619,-1102.3,9.898e-05,2]
[351597384,1738651926632,-687.18,9.898e-05,2]
[351597385,1738651926646,-1381.74,9.898e-05,2]
[351597386,1738651926663,-500.0,9.898e-05,2]
[351597387,1738651926681,-2821.45,9.898e-05,2]
[351597388,1738651926696,-3735.43,9.898e-05,2]
[351597389,1738651926712,-321.79233404,9.898e-05,2]
[351597390,1738651926727,-578.47,9.898e-05,2]
[351597391,1738651926742,-4039.67,9.898e-05,2]
[351597392,1738651927030,-7208.32,9.898e-05,2]
[351597393,1738651927043,-500.0,9.898e-05,2]
[351597394,1738651927054,-4132.64,9.898e-05,2]
[351597395,1738651927064,-779.56,9.898e-05,2]
[351597396,1738651927074,-1096.53,9.898e-05,2]
[351597397,1738651927083,-695.86,9.898e-05,2]
[351597398,1738651927093,-1243.82,9.898e-05,2]
[351597399,1738651927103,-500.0,9.898e-05,2]
[351597400,1738651927114,-9349.12,9.898e-05,2]
[351597401,1738651927126,-767.74,9.898e-05,2]
[351597402,1738651927136,-590.61,9.898e-05,2]
[351597403,1738651927145,-1992.72,9.898e-05,2]
[351597404,1738651927155,-1043.64,9.898e-05,2]
[351597405,1738651927165,-433.62711551,9.898e-05,2]
[351597406,1738651927174,-500.0,9.898e-05,2]
[351597407,1738651927184,-3184.53,9.898e-05,2]
[351597408,1738651927194,-960.35,9.898e-05,2]
[351597409,1738651927206,-3457.48,9.898e-05,2]
[351597410,1738651927216,-543.03,9.898e-05,2]
[351597411,1738651927226,-567.99,9.898e-05,2]
[351597412,1738651927235,-500.0,9.898e-05,2]
[351597413,1738651927245,-1178.38,9.898e-05,2]
[351597414,1738651927255,-3649.67,9.898e-05,2]
[351597415,1738651927264,-568.89,9.898e-05,2]
[351597416,1738651927275,-3263.47,9.898e-05,2]
[351597417,1738651927285,-1509.83,9.898e-05,2]
[351597418,1738651927295,-2825.8,9.898e-05,2]
[351597419,1738651927305,-551.84,9.898e-05,2]
[351597420,1738651927315,-521.44,9.898e-05,2]
[351597421,1738651927326,-500.0,9.898e-05,2]
[351597422,1738651927335,-500.0,9.898e-05,2]
[351597423,1738651927345,-2253.1,9.898e-05,2]
[351597424,1738651927356,-531.39,9.898e-05,2]
[351597425,1738651927366,-2034.78,9.898e-05,2]
[351597426,1738651927377,-3059.11,9.898e-05,2]
[351597427,1738651927387,-1676.59,9.898e-05,2]
[351597428,1738651927397,-500.0,9.898e-05,2]
[351597429,1738651927407,-3067.77,9.898e-05,2]
[351597430,1738651927417,-811.45,9.898e-05,2]
[351597431,1738651927427,-704.39,9.898e-05,2]
[351597432,1738651927437,-1599.03,9.898e-05,2]
[351597433,1738651927448,-1503.5,9.898e-05,2]
[351597434,1738651927457,-1492.09,9.898e-05,2]
[351597435,1738651927467,-1793.52,9.898e-05,2]
[351597436,1738651927477,-602.67,9.898e-05,2]
[351597437,1738651927487,-500.0,9.898e-05,2]
[351597438,1738651927498,-532.79,9.898e-05,2]
[351597439,1738651927509,-626.12,9.898e-05,2]
[351597440,1738651927520,-508.24,9.898e-05,2]
[351597441,1738651927529,-648.43,9.898e-05,2]
[351597442,1738651927539,-3133.77,9.898e-05,2]
[351597443,1738651927548,-500.0,9.898e-05,2]
[351597444,1738651927559,-500.0,9.898e-05,2]
[351597445,1738651927569,-500.0,9.898e-05,2]
[351597446,1738651927578,-2093.99,9.898e-05,2]
[351597447,1738651927588,-1378.56,9.898e-05,2]
[351597448,1738651927598,-3288.7,9.898e-05,2]
[351597449,1738651927609,-13184.64933084,9.9e-05,2]
[351597450,1738651927620,-1100.0,9.9e-05,3]
[351597451,1738651927630,-3438.53,9.908e-05,2]
[351597452,1738651927640,-500.0,9.908e-05,2]
[351597453,1738651927649,-1646.64,9.908e-05,2]
[351597454,1738651927666,-3741.7,9.908e-05,2]
[351597455,1738651927680,-3952.63,9.908e-05,2]
[351597456,1738651927690,-3680.29,9.908e-05,2]
[351597457,1738651927700,-4147.98,9.908e-05,2]
[351597458,1738651927710,-4138.09,9.908e-05,2]
[351597459,1738651927721,-2408.72,9.908e-05,2]
[351597460,1738651927731,-1057.21,9.908e-05,2]
[351597461,1738651927741,-2579.52,9.908e-05,2]
[351597462,1738651927751,-3070.89,9.908e-05,2]
[351597463,1738651927760,-2766.53,9.908e-05,2]
[351597464,1738651927770,-3378.45,9.908e-05,2]
[351597465,1738651927780,-1311.77,9.908e-05,2]
[351597466,1738651927790,-2863.92,9.908e-05,2]
[351597467,1738651927800,-4110.8,9.908e-05,2]
[351597468,1738651927811,-3875.56,9.908e-05,2]
[351597469,1738651927822,-2764.33,9.908e-05,2]
[351597470,1738651927832,-3587.47,9.908e-05,2]
[351597471,1738651927842,-717.35,9.908e-05,2]
[351597472,1738651927852,-2721.91,9.908e-05,2]
[351597473,1738651927862,-500.0,9.959e-05,2]
[351597474,1738651927872,-894.03,9.959e-05,2]
[351597475,1738651927881,-500.0,9.959e-05,2]
[351597476,1738651927891,-549.03,9.959e-05,2]
[351597477,1738651927900,-652.3,9.959e-05,2]
[351597478,1738651927910,-500.0,9.959e-05,2]
[351597479,1738651927920,-500.0,9.959e-05,2]
[351597480,1738651927929,-778.56,9.959e-05,2]
[351597481,1738651927939,-573.55,9.959e-05,2]
[351597482,1738651927948,-500.0,9.959e-05,2]
[351597483,1738651927958,-1319.98,9.959e-05,2]
[351597484,1738651927967,-578.36,9.96e-05,2]
[351597485,1738651927977,-500.0,9.96e-05,2]
[351597486,1738651927986,-500.0,9.96e-05,2]
[351597487,1738651927996,-500.0,9.96e-05,2]
[351597488,1738651928005,-500.0,9.96e-05,2]
[351597489,1738651928015,-710.18,9.96e-05,2]
[351597490,1738651928025,-522.69,9.96e-05,2]
[351597491,1738651928034,-603.54,9.96e-05,2]
[351597492,1738651928044,-623.15,9.96e-05,2]
[351597493,1738651928054,-500.0,9.96e-05,2]
[351597494,1738651928064,-1377.31,9.96e-05,2]
[351597495,1738651928074,-500.0,9.96e-05,2]
[351597496,1738651928083,-500.0,9.96e-05,2]
[351597497,1738651928093,-858.49,9.96e-05,2]
[351597498,1738651928103,-639.79,9.96e-05,2]
[351597499,1738651928112,-657.95,9.96e-05,2]
[351597500,1738651928124,-524.94,9.96e-05,2]
[351597501,1738651928134,-770.99,9.96e-05,2]
[351597502,1738651928143,-500.0,9.96e-05,2]
[351597503,1738651928153,-500.0,9.96e-05,2]
[351597504,1738651928163,-500.0,9.96e-05,2]
[351597505,1738651928173,-500.0,9.96e-05,2]
[351597506,1738651928183,-611.3,9.96e-05,2]
[351597507,1738651928193,-902.57,9.96e-05,2]
[351597508,1738651928204,-500.0,9.96e-05,2]
[351597509,1738651928214,-2189.52,9.96e-05,2]
[351597510,1738651928224,-500.0,9.96e-05,2]
[351597511,1738651928234,-1033.88,9.96e-05,2]
[351597512,1738651928244,-500.0,9.96e-05,2]
[351597513,1738651928255,-832.83,9.96e-05,2]
[351597514,1738651928265,-500.0,9.96e-05,2]
[351597515,1738651928275,-505.08,9.96e-05,2]
[351597516,1738651928286,-500.0,9.96e-05,2]
[351597517,1738651928297,-682.97,9.96e-05,2]
[351597518,1738651928309,-848.97,9.96e-05,2]
[351597519,1738651928319,-1302.8,9.96e-05,2]
[351597520,1738651928330,-500.0,9.96e-05,2]
[351597521,1738651928340,-1221.1,9.96e-05,2]
[351597522,1738651928351,-1301.56,9.96e-05,2]
[351597523,1738651928361,-503.80435009,9.96e-05,2]
[351597524,1738651928371,-869.74,9.96e-05,2]
[351597525,1738651928381,-1267.25,9.96e-05,2]
[351597526,1738651928391,-500.0,9.96e-05,2]
[351597527,1738651928401,-1350.38,9.96e-05,2]
[351597528,1738651928411,-1376.69,9.96e-05,2]
[351597529,1738651928420,-765.49,9.96e-05,2]
[351597530,1738651928430,-500.0,9.96e-05,2]
[351597531,1738651928440,-500.0,9.96e-05,2]
[351597532,1738651928450,-1594.6,9.96e-05,2]
[351597533,1738651928459,-1384.45,9.96e-05,2]
[351597534,1738651928469,-2328.86,9.96e-05,2]
[351597535,1738651928479,-662.7,9.96e-05,2]
[351597536,1738651928489,-500.0,9.96e-05,2]
[351597537,1738651928499,-1335.29,9.96e-05,2]
[351597538,1738651928508,-500.0,9.96e-05,2]
[351597539,1738651928518,-659.98,9.96e-05,2]
[351597540,1738651928528,-2449.75,9.96e-05,2]
[351597541,1738651928538,-612.87,9.96e-05,2]
[351597542,1738651928548,-1097.71,9.96e-05,2]
[351597543,1738651928561,-710.91,9.96e-05,2]
[351597544,1738651928570,-543.58,9.96e-05,2]
[351597545,1738651928580,-500.0,9.96e-05,2]
[351597546,1738651928590,-1882.1,9.96e-05,2]
[351597547,1738651928600,-500.0,9.96e-05,2]
[351597548,1738651928611,-2099.03,9.96e-05,2]
[351597549,1738651928621,-698.47,9.96e-05,2]
[351597550,1738651928631,-500.0,9.96e-05,2]
[351597551,1738651928641,-500.0,9.96e-05,2]
[351597552,1738651928650,-613.08,9.96e-05,2]
[351597553,1738651928660,-1113.29,9.96e-05,2]
[351597554,1738651928670,-500.0,9.96e-05,2]
[351597555,1738651928680,-1797.38,9.96e-05,2]
[351597556,1738651928690,-500.0,9.96e-05,2]
[351597557,1738651928700,-739.28,9.96e-05,2]
[351597558,1738651928710,-500.0,9.96e-05,2]
[351597559,1738651928719,-1290.62,9.96e-05,2]
[351597560,1738651928730,-500.0,9.96e-05,2]
[351597561,1738651928739,-500.0,9.96e-05,2]
[351597562,1738651928749,-500.0,9.96e-05,2]
[351597563,1738651928760,-500.0,9.96e-05,2]
[351597564,1738651928770,-1811.38,9.96e-05,2]
[351597565,1738651928780,-631.18,9.96e-05,2]
[351597566,1738651928789,-1254.13,9.96e-05,2]
[351597567,1738651928799,-500.0,9.96e-05,2]
[351597568,1738651928811,-1097.17,9.96e-05,2]
[351597569,1738651928820,-991.82,9.96e-05,2]
[351597570,1738651928830,-500.0,9.96e-05,2]
[351597571,1738651928840,-500.0,9.96e-05,2]
[351597572,1738651928850,-627.77,9.96e-05,2]
[351597573,1738651928859,-500.0,9.96e-05,2]
[351597574,1738651928869,-1787.47,9.96e-05,2]
[351597575,1738651928879,-2221.8,9.96e-05,2]
[351597576,1738651928889,-804.27,9.96e-05,2]
[351597577,1738651928898,-1310.71,9.96e-05,2]
[351597578,1738651928908,-500.0,9.96e-05,2]
[351597579,1738651928917,-3296.39,9.96e-05,2]
[351597580,1738651928927,-562.33,9.96e-05,2]
[351597581,1738651928937,-790.63,9.96e-05,2]
[351597582,1738651928947,-1182.99,9.96e-05,2]
[351597583,1738651928957,-1297.64,9.96e-05,2]
[351597584,1738651928967,-774.54,9.96e-05,2]
[351597585,1738651928977,-727.93,9.96e-05,2]
[351597586,1738651928986,-500.0,9.96e-05,2]
[351597587,1738651928997,-1926.99,9.96e-05,2]
[351597588,1738651929006,-1409.12,9.96e-05,2]
[351597589,1738651929016,-500.0,9.96e-05,2]
[351597590,1738651929027,-1967.91,9.96e-05,2]
[351597591,1738651929037,-1137.79,9.96e-05,2]
[351597592,1738651929047,-500.0,9.96e-05,2]
[351597593,1738651929060,-500.0,9.96e-05,2]
[351597594,1738651929071,-1241.55,9.96e-05,2]
[351597595,1738651929082,-500.0,9.96e-05,2]
[351597596,1738651929092,-582.03,9.96e-05,2]
[351597597,1738651929102,-500.0,9.96e-05,2]
[351597598,1738651929115,-2472.38,9.96e-05,2]
[351597599,1738651929126,-500.0,9.96e-05,2]
[351597600,1738651929136,-551.09,9.96e-05,2]
[351597601,1738651929147,-1439.06,9.96e-05,2]
[351597602,1738651929158,-500.0,9.96e-05,2]
[351597603,1738651929168,-1487.13,9.96e-05,2]
[351597604,1738651929178,-500.0,9.96e-05,2]
[351597605,1738651929188,-1607.5,9.96e-05,2]
[351597606,1738651929200,-3353.26,9.96e-05,2]
[351597607,1738651929211,-500.0,9.96e-05,2]
[351597608,1738651929221,-1710.03,9.96e-05,2]
[351597609,1738651929230,-678.92,9.96e-05,2]
[351597610,1738651929240,-1755.84,9.96e-05,2]
[351597611,1738651929250,-2208.53,9.96e-05,2]
[351597612,1738651929260,-762.71,9.96e-05,2]
[351597613,1738651929270,-173.4502715,9.96e-05,2]
[351597614,1738651929281,-562.92,9.96e-05,2]
[351597615,1738651929291,-2000.55,9.96e-05,2]
[351597616,1738651929300,-521.56,9.96e-05,2]
[351597617,1738651929315,-1457.81,9.96e-05,2]
[351597618,1738651929326,-665.54,9.96e-05,2]
[351597619,1738651929336,-1064.1,9.96e-05,2]
[351597620,1738651929345,-3252.58,9.96e-05,2]
[351597621,1738651929355,-500.0,9.96e-05,2]
[351597622,1738651929365,-500.0,9.96e-05,2]
[351597623,1738651929375,-774.04,9.96e-05,2]
[351597624,1738651929385,-500.0,9.96e-05,2]
[351597625,1738651929395,-1356.21,9.96e-05,2]
[351597626,1738651929405,-500.0,9.96e-05,2]
[351597627,1738651929415,-500.0,9.96e-05,2]
[351597628,1738651929425,-1161.1,9.96e-05,2]
[351597629,1738651929435,-1271.77,9.96e-05,2]
[351597630,1738651929445,-1243.17,9.96e-05,2]
[351597631,1738651929455,-810.41,9.96e-05,2]
[351597632,1738651929465,-445.01429053,9.96e-05,2]
[351597633,1738651929475,-1701.57,9.96e-05,2]
[351597634,1738651929484,-500.0,9.96e-05,2]
[351597635,1738651929493,-1227.61,9.96e-05,2]
[351597636,1738651929503,-1258.33,9.96e-05,2]
[351597637,1738651929512,-533.93,9.96e-05,2]
[351597638,1738651929521,-500.0,9.96e-05,2]
[351597639,1738651929531,-1867.62,9.96e-05,2]
[351597640,1738651929542,-2414.87,9.96e-05,2]
[351597641,1738651929552,-1692.34,9.96e-05,2]
[351597642,1738651929565,-974.44,9.96e-05,2]
[351597643,1738651929575,-2119.85,9.96e-05,2]
[351597644,1738651929585,-443.71669226,9.96e-05,2]
[351597645,1738651929594,-608.12,9.96e-05,2]
[351597646,1738651929604,-500.0,9.96e-05,2]
[351597647,1738651929613,-706.35,9.96e-05,2]
[351597648,1738651929623,-980.64,9.96e-05,2]
[351597649,1738651929633,-557.68,9.96e-05,2]
[351597650,1738651929643,-1544.16,9.96e-05,2]
[351597651,1738651929652,-1127.81,9.96e-05,2]
[351597652,1738651929662,-962.28,9.96e-05,2]
[351597653,1738651929671,-500.0,9.96e-05,2]
[351597654,1738651929682,-842.89,9.96e-05,2]
[351597655,1738651929691,-583.68,9.96e-05,2]
[351597656,1738651929701,-880.05,9.96e-05,2]
[351597657,1738651929710,-1664.57,9.96e-05,2]
[351597658,1738651929720,-500.0,9.96e-05,2]
[351597659,1738651929730,-1460.87,9.96e-05,2]
[351597660,1738651929740,-537.15,9.96e-05,2]
[351597661,1738651929750,-2650.59,9.96e-05,2]
[351597662,1738651929760,-1032.75,9.96e-05,2]
[351597663,1738651929770,-1816.98,9.961e-05,2]
[351597664,1738651929780,-204.00321252,9.961e-05,2]
[351597665,1738651929790,-800.32,9.961e-05,2]
[351597666,1738651929800,-2661.74,9.961e-05,2]
[351597667,1738651929811,-3559.44,9.961e-05,2]
[351597668,1738651929820,-500.0,9.961e-05,2]
[351597669,1738651929830,-1000.2,9.961e-05,2]
[351597670,1738651929840,-1789.57,9.961e-05,2]
[351597671,1738651929850,-1346.06,9.961e-05,2]
[351597672,1738651929860,-500.0,9.961e-05,2]
[351597673,1738651929871,-500.0,9.961e-05,2]
[351597674,1738651929880,-1910.87,9.961e-05,2]
[351597675,1738651929890,-574.03,9.961e-05,2]
[351597676,1738651929900,-1533.37,9.961e-05,2]
[351597677,1738651929910,-1637.92,9.961e-05,2]
[351597678,1738651929919,-500.0,9.961e-05,2]
[351597679,1738651929929,-2100.89,9.961e-05,2]
[351597680,1738651929939,-1545.56,9.961e-05,2]
[351597681,1738651929949,-1220.82,9.961e-05,2]
[351597682,1738651929959,-1891.37,9.961e-05,2]
[351597683,1738651929968,-1353.58,9.961e-05,2]
[351597684,1738651929978,-500.0,9.961e-05,2]
[351597685,1738651929988,-1547.3,9.961e-05,2]
[351597686,1738651929998,-1928.93,9.961e-05,2]
[351597687,1738651930008,-951.36,9.961e-05,2]
[351597688,1738651930019,-1905.83,9.961e-05,2]
[351597689,1738651930029,-2772.81,9.961e-05,2]
[351597690,1738651930039,-1936.34,9.961e-05,2]
[351597691,1738651930049,-1218.2,9.961e-05,2]
[351597692,1738651930061,-760.65,9.961e-05,2]
[351597693,1738651930072,-1833.02,9.961e-05,2]
[351597694,1738651930082,-1760.21,9.961e-05,2]
[351597695,1738651930093,-1969.26,9.961e-05,2]
[351597696,1738651930103,-557.17,9.961e-05,2]
[351597697,1738651930114,-2207.04,9.961e-05,2]
[351597698,1738651930126,-1067.3,9.961e-05,2]
[351597699,1738651930137,-1711.85,9.961e-05,2]
[351597700,1738651930147,-606.13,9.961e-05,2]
[351597701,1738651930159,-1026.18,9.961e-05,2]
[351597702,1738651930169,-579.86,9.961e-05,2]
[351597703,1738651930179,-991.53,9.961e-05,2]
[351597704,1738651930189,-1828.91,9.961e-05,2]
[351597705,1738651930203,-1160.19,9.961e-05,2]
[351597706,1738651930214,-150.0,9.961e-05,2]
[351597707,1738651930224,-1961.27,9.961e-05,2]
[351597708,1738651930234,-503.46,9.962e-05,2]
[351597709,1738651930244,-500.0,9.962e-05,2]
[351597710,1738651930255,-500.0,9.962e-05,2]
[351597711,1738651930265,-637.81,9.962e-05,2]
[351597712,1738651930276,-500.0,9.962e-05,2]
[351597713,1738651930286,-500.0,9.962e-05,2]
[351597714,1738651930296,-848.3,9.962e-05,2]
[351597715,1738651930308,-500.0,9.962e-05,2]
[351597716,1738651930318,-243.78454013,9.962e-05,2]
[351597717,1738651930330,-617.18,9.962e-05,2]
[351597718,1738651930340,-508.12,9.962e-05,2]
[351597719,1738651930350,-1325.81,9.962e-05,2]
[351597720,1738651930361,-500.0,9.962e-05,2]
[351597721,1738651930371,-667.07,9.962e-05,2]
[351597722,1738651930381,-500.0,9.962e-05,2]
[351597723,1738651930390,-1020.47,9.962e-05,2]
[351597724,1738651930400,-500.0,9.962e-05,2]
[351597725,1738651930410,-500.0,9.962e-05,2]
[351597726,1738651930419,-971.18,9.962e-05,2]
[351597727,1738651930429,-1055.22,9.962e-05,2]
[351597728,1738651930439,-601.82,9.962e-05,2]
[351597729,1738651930449,-500.0,9.962e-05,2]
[351597730,1738651930459,-584.0,9.962e-05,2]
[351597731,1738651930469,-500.0,9.962e-05,2]
[351597732,1738651930479,-664.68,9.962e-05,2]
[351597733,1738651930488,-693.7,9.962e-05,2]
[351597734,1738651930498,-500.0,9.962e-05,2]
[351597735,1738651930508,-910.68,9.962e-05,2]
[351597736,1738651930517,-949.48,9.962e-05,2]
[351597737,1738651930527,-649.65,9.962e-05,2]
[351597738,1738651930536,-737.64,9.962e-05,2]
[351597739,1738651930546,-500.0,9.962e-05,2]
[351597740,1738651930555,-585.58,9.962e-05,2]
[351597741,1738651930565,-500.0,9.962e-05,2]
[351597742,1738651930576,-505.26379251,9.962e-05,2]